bitfinex/quotes_BTCUSD_20250422
["timestamp","ask_amount","ask_price","bid_price","bid_amount"]
[1745337785495,0.36867867,90801.0,90800.0,1.28606137]
[1745337785907,0.35767867,90801.0,90800.0,1.28606137]
[1745337786111,0.36867867,90801.0,90800.0,1.28606137]
[1745337786321,0.52211867,90801.0,90800.0,1.28606137]
[1745337786726,0.56492306,90801.0,90800.0,1.28606137]
[1745337787473,0.52211867,90801.0,90800.0,1.28606137]
[1745337787679,0.93251867,90801.0,90800.0,1.28606137]
[1745337788125,0.92551867,90801.0,90800.0,1.28606137]
[1745337788547,0.93251867,90801.0,90800.0,1.28606137]
[1745337788783,0.92851867,90801.0,90800.0,1.28606137]
[1745337788992,1.03527072,90801.0,90800.0,1.28606137]
[1745337789219,1.07267502,90801.0,90800.0,1.28606137]
[1745337789431,1.04227072,90801.0,90800.0,1.28606137]
[1745337789639,0.92151867,90801.0,90800.0,1.28606137]
[1745337789843,0.92451867,90801.0,90800.0,1.28606137]
[1745337790055,0.92951867,90801.0,90800.0,1.28606137]
[1745337790265,1.36951867,90801.0,90800.0,1.28606137]
[1745337790491,1.48627072,90801.0,90800.0,1.28606137]
[1745337790699,1.48327072,90801.0,90800.0,1.28606137]
[1745337791116,1.47827072,90801.0,90800.0,1.28606137]
[1745337791513,1.48327072,90801.0,90800.0,1.28606137]
[1745337791754,1.48827072,90801.0,90800.0,1.28706137]
[1745337791974,1.48027072,90801.0,90800.0,1.28706137]
[1745337792398,1.49127072,90801.0,90800.0,1.28706137]
[1745337792627,1.57264735,90801.0,90800.0,1.28706137]
[1745337792836,1.56337084,90801.0,90800.0,1.28706137]
[1745337793066,1.56337084,90801.0,90800.0,1.28606137]
[1745337793293,0.82581972,90794.0,90789.0,0.18267906]
[1745337793525,1.04129915,90794.0,90789.0,0.18267906]
[1745337794151,1.46381914,90794.0,90789.0,0.18267906]
[1745337794392,0.72582942,90790.0,90789.0,0.18267906]
[1745337794592,0.94130885,90790.0,90789.0,0.18267906]
[1745337794799,1.0550609,90790.0,90789.0,0.18267906]
[1745337795231,0.97065404,90790.0,90789.0,0.18267906]
[1745337795442,0.24482462,90790.0,90789.0,0.18267906]
[1745337795591,0.44488799,90790.0,90789.0,0.18267906]
[1745337795808,0.45942884,90790.0,90789.0,0.18267906]
[1745337796019,0.45930885,90790.0,90789.0,0.18267906]
[1745337796465,0.45030885,90790.0,90789.0,0.18267906]
[1745337796676,0.61178885,90790.0,90789.0,0.18267906]
[1745337797094,0.61578885,90790.0,90789.0,0.18267906]
[1745337797313,0.61178885,90790.0,90789.0,0.18267906]
[1745337797740,0.61578885,90790.0,90789.0,0.18267906]
[1745337797971,0.66629937,90790.0,90789.0,0.18267906]
[1745337798382,0.67929937,90790.0,90789.0,0.18267906]
[1745337798582,0.62078885,90790.0,90789.0,0.18267906]
[1745337798789,0.27695943,90790.0,90789.0,0.18267906]
[1745337799140,0.30050028,90790.0,90789.0,0.18267906]
[1745337800322,0.13247943,90790.0,90789.0,0.18267906]
[1745337800525,0.017,90790.0,90789.0,0.28187906]
[1745337800765,0.017,90790.0,90789.0,0.29568442]
[1745337801454,0.008,90790.0,90789.0,0.29568442]
[1745337801684,0.004,90790.0,90789.0,0.29568442]
[1745337802094,0.15348,90808.0,90789.0,0.29568442]
[1745337802350,0.14143745,90807.0,90789.0,0.28187906]
[1745337802586,0.001,90790.0,90789.0,0.28187906]
[1745337802796,0.11475594,90790.0,90789.0,0.23227906]
[1745337803007,0.11375594,90790.0,90789.0,0.23227906]
[1745337803415,0.11475594,90790.0,90789.0,0.24227906]
[1745337803865,0.11375594,90790.0,90789.0,0.23227906]
[1745337804069,0.11475594,90790.0,90789.0,0.23827906]
[1745337804267,0.11575594,90790.0,90789.0,0.23427906]
[1745337804498,0.11475594,90790.0,90789.0,0.23427906]
[1745337804725,0.11575594,90790.0,90789.0,0.24027906]
[1745337805001,0.002,90790.0,90789.0,0.24027906]
[1745337805256,0.001,90790.0,90789.0,0.23827906]
[1745337805503,0.003,90790.0,90789.0,0.23927906]
[1745337806385,0.002,90790.0,90789.0,0.62177906]
[1745337807082,0.003,90790.0,90789.0,0.62677906]
[1745337807787,0.11675594,90790.0,90789.0,0.28677906]
[1745337808803,0.11675594,90790.0,90789.0,0.23827906]
[1745337810997,0.11675594,90790.0,90789.0,0.18867906]
[1745337811213,0.11475594,90790.0,90789.0,0.18767906]
[1745337811410,0.11575594,90790.0,90789.0,0.18767906]
[1745337812045,0.11475594,90790.0,90789.0,0.18767906]
[1745337812252,0.11475594,90790.0,90789.0,0.18267906]
[1745337812840,0.15612038,90790.0,90789.0,0.18267906]
[1745337813045,0.13029679,90790.0,90789.0,0.18767906]
[1745337813221,0.11575594,90790.0,90789.0,0.18767906]
[1745337813426,0.12829679,90790.0,90789.0,0.18267906]
[1745337813685,0.12929679,90790.0,90789.0,0.18667906]
[1745337813886,0.13129679,90790.0,90789.0,0.18667906]
[1745337814278,0.11675594,90790.0,90789.0,0.18667906]
[1745337814506,0.11475594,90790.0,90789.0,0.18667906]
[1745337814944,0.11675594,90790.0,90789.0,0.18667906]
[1745337815365,0.09996895,90807.0,90789.0,0.18667906]
[1745337815366,0.14876,90801.0,90789.0,0.23117906]
[1745337815574,0.11375594,90801.0,90789.0,0.23517906]
[1745337815777,0.11375594,90800.0,90790.0,0.39282404]
[1745337816431,0.26251594,90800.0,90790.0,0.39282404]
[1745337817338,0.21843594,90800.0,90790.0,0.39282404]
[1745337817544,0.21843594,90800.0,90790.0,0.39582404]
[1745337817750,0.21843594,90800.0,90790.0,0.003]
[1745337817953,0.22143594,90800.0,90790.0,0.003]
[1745337818771,0.22143594,90800.0,90790.0,0.39582404]
[1745337819157,0.07267594,90800.0,90790.0,0.39582404]
[1745337819388,0.22139594,90800.0,90790.0,0.39582404]
[1745337819563,0.15172,90800.0,90790.0,0.39582404]
[1745337819770,0.15172,90800.0,90790.0,0.173424]
[1745337819976,0.15172,90800.0,90790.0,0.17562664]
[1745337820373,0.15172,90800.0,90791.0,0.0458]
[1745337820572,0.15172,90800.0,90799.0,0.34]
[1745337820573,0.003,90800.0,90799.0,0.34]
[1745337820831,0.003,90800.0,90799.0,0.4343]
[1745337821183,0.00013743,90808.0,90799.0,0.4343]
[1745337821397,0.003,90800.0,90799.0,0.4343]
[1745337821784,0.003,90800.0,90799.0,0.0943]
[1745337821982,0.00013743,90808.0,90799.0,0.0943]
[1745337822398,0.00013743,90808.0,90799.0,0.4343]
[1745337822549,0.00013743,90808.0,90800.0,0.34]
[1745337822961,0.00013743,90808.0,90799.0,0.0943]
[1745337823340,0.00013743,90808.0,90799.0,0.0993]
[1745337823341,0.006,90800.0,90799.0,0.0993]
[1745337823550,0.006,90800.0,90799.0,0.0943]
[1745337823969,0.11375594,90800.0,90799.0,0.0458]
[1745337824171,0.11375594,90800.0,90789.0,0.18267906]
[1745337824172,0.0110137,90796.0,90789.0,0.18267906]
[1745337824368,0.11375594,90795.0,90789.0,0.18267906]
[1745337824849,0.24872,90801.0,90799.0,0.001]
[1745337825035,0.24872,90801.0,90800.0,0.005]
[1745337825283,0.24872,90801.0,90799.0,0.001]
[1745337826299,0.24872,90801.0,90800.0,0.001]
[1745337826498,0.24872,90801.0,90789.0,0.18367906]
[1745337826703,0.001,90795.0,90789.0,0.18367906]
[1745337826924,0.47999515,90801.0,90789.0,0.18367906]
[1745337827127,0.47999515,90801.0,90789.0,0.18267906]
[1745337827128,0.4799974,90801.0,90789.0,0.18267906]
[1745337827335,0.01101321,90800.0,90799.0,0.001]
[1745337827539,0.25272,90801.0,90799.0,0.001]
[1745337827919,0.25973309,90801.0,90789.0,0.18267906]
[1745337828151,0.01101333,90799.0,90789.0,0.18367906]
[1745337828357,0.24972,90801.0,90800.0,0.002]
[1745337828769,0.14972,90801.0,90790.0,0.39502676]
[1745337828946,0.14972,90801.0,90799.0,0.002]
[1745337829306,0.14872,90801.0,90791.0,0.34687627]
[1745337829503,0.14872,90801.0,90800.0,0.002]
[1745337829707,0.15172,90801.0,90799.0,0.001]
[1745337830105,0.15172,90801.0,90799.0,0.003]
[1745337830276,0.14872,90801.0,90799.0,0.002]
[1745337830508,0.11375594,90800.0,90799.0,0.002]
[1745337831068,0.14872,90800.0,90799.0,0.002]
[1745337831280,0.14872,90800.0,90799.0,0.001]
[1745337831714,0.14672,90800.0,90799.0,0.001]
[1745337832741,0.14672,90800.0,90789.0,0.18267906]
[1745337832742,0.23128348,90798.0,90789.0,0.18267906]
[1745337832953,0.11375594,90797.0,90789.0,0.18267906]
[1745337833964,0.11375594,90797.0,90789.0,0.18367906]
[1745337834295,0.11375594,90797.0,90789.0,0.18267906]
[1745337834698,0.001,90798.0,90789.0,0.18567906]
[1745337834900,0.01101418,90792.0,90789.0,0.18267906]
[1745337835102,0.22028732,90791.0,90789.0,0.18267906]
[1745337835308,0.22028732,90791.0,90789.0,0.18567906]
[1745337835309,0.20696339,90790.0,90789.0,0.18567906]
[1745337835503,0.12829679,90790.0,90789.0,0.18267906]
[1745337835934,0.12829679,90790.0,90789.0,0.18567906]
[1745337836085,0.00825512,90790.0,90789.0,0.18267906]
[1745337836286,0.1,90792.0,90789.0,0.18267906]
[1745337836498,0.004,90790.0,90789.0,0.18267906]
[1745337836696,0.004,90790.0,90789.0,0.22857906]
[1745337836904,0.14872,90792.0,90789.0,0.18267906]
[1745337837100,0.26247594,90792.0,90789.0,0.18267906]
[1745337837311,0.006,90790.0,90789.0,0.18267906]
[1745337837514,0.007,90790.0,90789.0,0.18267906]
[1745337837720,0.006,90790.0,90789.0,0.18267906]
[1745337838145,0.006,90790.0,90789.0,0.18467906]
[1745337838356,0.006,90790.0,90789.0,0.18267906]
[1745337838563,0.006,90790.0,90789.0,0.18367906]
[1745337838778,0.26347594,90792.0,90789.0,0.18367906]
[1745337838983,0.26447594,90792.0,90789.0,0.18267906]
[1745337839190,0.26447594,90792.0,90789.0,0.18367906]
[1745337839388,0.26247594,90792.0,90789.0,0.18367906]
[1745337839593,0.00013743,90808.0,90789.0,0.18367906]
[1745337839803,0.1710362,90805.0,90796.0,0.34]
[1745337840027,0.1710362,90805.0,90798.0,0.0453]
[1745337840231,0.1710362,90805.0,90804.0,0.60615461]
[1745337840447,0.1710362,90805.0,90804.0,0.65145461]
[1745337840650,0.0008476,90830.0,90829.0,0.22019399]
[1745337840858,0.0002,90844.0,90841.0,0.01100824]
[1745337841073,0.00029621,90844.0,90843.0,0.34]
[1745337841704,0.00029621,90844.0,90843.0,0.34687655]
[1745337841921,0.00029621,90844.0,90843.0,0.3602236]
[1745337842335,0.00129621,90844.0,90843.0,0.35334705]
[1745337842765,0.00129621,90844.0,90843.0,0.01334705]
[1745337842972,0.00229621,90844.0,90843.0,0.002]
[1745337843443,0.00129621,90844.0,90841.0,0.00620142]
[1745337843646,0.00129621,90844.0,90843.0,0.34]
[1745337843855,0.00229621,90844.0,90843.0,0.342]
[1745337844063,0.00129621,90844.0,90843.0,0.54695594]
[1745337844265,0.00129621,90844.0,90843.0,0.3879]
[1745337844489,0.00229621,90844.0,90843.0,0.40177177]
[1745337844692,0.00229621,90844.0,90843.0,0.05477177]
[1745337844900,0.00229621,90844.0,90843.0,0.05277177]
[1745337844901,0.00129621,90844.0,90843.0,0.05277177]
[1745337845097,0.00129621,90844.0,90843.0,0.05777177]
[1745337845098,0.00229621,90844.0,90843.0,0.05777177]
[1745337845307,0.00329621,90844.0,90843.0,0.06077177]
[1745337845517,0.00329621,90844.0,90843.0,0.3968889]
[1745337845725,0.00329621,90844.0,90843.0,0.73468776]
[1745337846135,0.00329621,90844.0,90843.0,0.51452771]
[1745337847823,0.0004242,90851.0,90844.0,0.57116551]
[1745337848041,0.00044781,90859.0,90858.0,0.5601237]
[1745337848244,0.0008496,90884.0,90878.0,0.34]
[1745337848464,0.0008496,90884.0,90859.0,0.05]
[1745337848465,0.251,90844.0,90803.0,0.01101285]
[1745337848660,0.1,90814.0,90795.0,0.01101382]
[1745337848871,0.11454085,90814.0,90813.0,0.01324678]
[1745337849083,0.00954085,90821.0,90790.0,0.3422026]
[1745337849305,0.00954085,90821.0,90780.0,0.63414233]
[1745337849513,0.00954085,90821.0,90790.0,0.0130911]
[1745337849514,0.2312304,90819.0,90790.0,0.0130911]
[1745337849753,0.33023223,90846.0,90790.0,0.0130911]
[1745337849754,0.01101054,90822.0,90790.0,0.00220262]
[1745337849976,0.002,90814.0,90795.0,0.005]
[1745337850406,0.011012,90810.0,90795.0,0.00509621]
[1745337850614,0.011012,90810.0,90801.0,0.001]
[1745337850834,0.23125156,90811.0,90801.0,0.001]
[1745337851040,0.01101212,90809.0,90801.0,0.001]
[1745337851187,0.01101188,90811.0,90801.0,0.001]
[1745337851776,0.003,90810.0,90801.0,0.002]
[1745337851986,0.23425409,90810.0,90801.0,0.002]
[1745337852190,0.014012,90810.0,90801.0,0.002]
[1745337852388,0.003,90810.0,90801.0,0.002]
[1745337853067,0.22024365,90809.0,90801.0,0.002]
[1745337853375,0.003,90810.0,90801.0,0.002]
[1745337853597,0.003,90810.0,90802.0,0.00220262]
[1745337854241,0.003,90811.0,90802.0,0.00220262]
[1745337854462,0.22019883,90827.0,90802.0,0.00220262]
[1745337854631,0.002,90810.0,90802.0,0.00220262]
[1745337854838,0.006,90810.0,90802.0,0.00220262]
[1745337855039,0.009,90810.0,90802.0,0.00220262]
[1745337855269,0.0083635,90841.0,90801.0,0.001]
[1745337855270,0.01101151,90814.0,90801.0,0.001]
[1745337855479,0.004,90811.0,90801.0,0.001]
[1745337855680,0.007,90811.0,90801.0,0.001]
[1745337855880,0.01101273,90804.0,90801.0,0.001]
[1745337856152,0.11375594,90810.0,90801.0,0.001]
[1745337856357,0.11775594,90810.0,90801.0,0.001]
[1745337857002,0.004,90810.0,90801.0,0.341]
[1745337857229,0.004,90810.0,90802.0,0.0359576]
[1745337857447,0.004,90810.0,90803.0,0.11375594]
[1745337857673,0.09996447,90844.0,90805.0,0.34]
[1745337857858,0.003,90810.0,90807.0,0.34]
[1745337858100,0.01100872,90837.0,90807.0,0.34]
[1745337858317,0.002,90810.0,90807.0,0.34]
[1745337858524,0.002,90810.0,90809.0,0.34]
[1745337858773,0.003,90810.0,90807.0,0.34]
[1745337859026,0.003,90810.0,90808.0,0.00220198]
[1745337859264,0.11375594,90836.0,90809.0,0.34]
[1745337859506,0.11375594,90836.0,90809.0,0.57125399]
[1745337859507,0.003,90810.0,90809.0,0.57125399]
[1745337859995,0.003,90810.0,90809.0,0.68500993]
[1745337860203,0.003,90810.0,90809.0,0.73210993]
[1745337860422,0.08895659,90844.0,90830.0,0.92824233]
[1745337860632,0.08895659,90844.0,90830.0,0.58824233]
[1745337860843,0.08895659,90844.0,90831.0,0.34]
[1745337861688,0.11375594,90843.0,90821.0,0.34]
[1745337861894,0.11375594,90843.0,90831.0,9.621e-05]
[1745337862106,0.003,90836.0,90831.0,9.621e-05]
[1745337862313,0.08895659,90834.0,90831.0,9.621e-05]
[1745337862518,0.11375594,90833.0,90831.0,9.621e-05]
[1745337862929,0.2311749,90841.0,90831.0,9.621e-05]
[1745337862930,0.002,90844.0,90831.0,9.621e-05]
[1745337863137,0.11375594,90843.0,90831.0,9.621e-05]
[1745337863346,0.11775594,90843.0,90831.0,9.621e-05]
[1745337863554,0.11375594,90843.0,90831.0,9.621e-05]
[1745337863976,0.01100667,90854.0,90831.0,9.621e-05]
[1745337864084,0.005,90834.0,90831.0,9.621e-05]
[1745337864510,0.1,90858.0,90833.0,0.34]
[1745337864708,0.11375594,90857.0,90840.0,0.58824233]
[1745337864947,0.005,90843.0,90840.0,0.58824233]
[1745337865363,0.11375594,90857.0,90840.0,0.58824233]
[1745337865995,0.11375594,90857.0,90831.0,9.621e-05]
[1745337865996,0.01454085,90842.0,90831.0,9.621e-05]
[1745337866205,0.01100872,90837.0,90831.0,9.621e-05]
[1745337866402,0.22017393,90838.0,90831.0,9.621e-05]
[1745337866403,0.11375594,90836.0,90831.0,9.621e-05]
[1745337866813,0.23472578,90833.0,90831.0,9.621e-05]
[1745337867031,0.11375594,90832.0,90831.0,9.621e-05]
[1745337867289,0.33394265,90832.0,90831.0,9.621e-05]
[1745337867506,0.11375594,90832.0,90831.0,9.621e-05]
[1745337867712,0.2201592,90844.0,90831.0,9.621e-05]
[1745337867713,0.1,90840.0,90831.0,9.621e-05]
[1745337868009,0.21375594,90840.0,90831.0,9.621e-05]
[1745337868258,0.007,90833.0,90831.0,9.621e-05]
[1745337868488,0.21375594,90840.0,90831.0,9.621e-05]
[1745337868936,0.008,90832.0,90831.0,9.621e-05]
[1745337870095,0.1,90858.0,90831.0,0.00796894]
[1745337870321,0.008,90840.0,90831.0,0.00796894]
[1745337870581,0.008,90840.0,90832.0,0.34]
[1745337870827,0.11375594,90857.0,90834.0,0.34]
[1745337871078,0.007,90840.0,90835.0,0.00220143]
[1745337871281,0.007,90840.0,90834.0,0.34]
[1745337871712,0.11375594,90857.0,90834.0,0.34]
[1745337871897,0.006,90840.0,90833.0,0.34]
[1745337872123,0.006,90840.0,90834.0,0.001]
[1745337872278,0.006,90840.0,90833.0,0.34]
[1745337872646,0.009,90840.0,90834.0,0.001]
[1745337872841,0.006,90840.0,90833.0,0.34]
[1745337873050,0.11375594,90857.0,90833.0,0.34]
[1745337873256,0.11375594,90857.0,90841.0,0.34]
[1745337874363,0.11675594,90857.0,90841.0,0.34]
[1745337874728,0.11375594,90857.0,90841.0,0.341]
[1745337874885,0.11975594,90857.0,90841.0,0.01497924]
[1745337875101,0.12575594,90857.0,90841.0,0.002]
[1745337875305,0.13676224,90857.0,90841.0,0.002]
[1745337875481,0.26876699,90856.0,90841.0,0.002]
[1745337875689,0.22016175,90843.0,90841.0,0.002]
[1745337875895,0.11375594,90842.0,90841.0,0.002]
[1745337876309,0.11375594,90842.0,90841.0,0.001]
[1745337876515,0.12829679,90842.0,90841.0,0.001]
[1745337877195,0.01000848,90839.0,90831.0,9.621e-05]
[1745337877390,0.12476454,90838.0,90831.0,9.621e-05]
[1745337877594,0.11375594,90838.0,90831.0,9.621e-05]
[1745337877794,0.12476454,90838.0,90831.0,9.621e-05]
[1745337878039,0.11375594,90838.0,90831.0,9.621e-05]
[1745337878450,0.11454085,90832.0,90831.0,9.621e-05]
[1745337878656,0.27359679,90832.0,90831.0,9.621e-05]
[1745337878993,0.27359679,90832.0,90801.0,0.001]
[1745337878994,0.1,90818.0,90804.0,0.01280024]
[1745337879220,0.11375594,90817.0,90801.0,0.001]
[1745337879439,0.01101163,90813.0,90803.0,0.01235856]
[1745337879647,0.1,90808.0,90801.0,0.001]
[1745337879853,0.11375594,90807.0,90803.0,0.01270692]
[1745337880053,0.11375594,90807.0,90801.0,0.001]
[1745337880260,0.1,90821.0,90801.0,0.001]
[1745337880460,0.003,90817.0,90801.0,0.001]
[1745337880899,0.11375594,90820.0,90801.0,0.01370566]
[1745337881231,0.004,90807.0,90801.0,0.001]
[1745337881781,0.11375594,90806.0,90801.0,0.001]
[1745337883188,0.102,90820.0,90801.0,0.001]
[1745337883432,0.11375594,90819.0,90801.0,0.001]
[1745337883636,0.01101127,90816.0,90801.0,0.001]
[1745337883840,0.11375594,90815.0,90801.0,0.001]
[1745337884020,0.004,90806.0,90801.0,0.001]
[1745337884402,0.001,90807.0,90801.0,0.001]
[1745337884834,0.11375594,90815.0,90801.0,0.001]
[1745337885029,0.01454085,90814.0,90801.0,0.001]
[1745337885162,0.11375594,90813.0,90801.0,0.001]
[1745337885609,0.003,90807.0,90801.0,0.001]
[1745337885818,0.11375594,90813.0,90801.0,0.001]
[1745337886215,0.004,90807.0,90801.0,0.001]
[1745337886944,0.1482,90825.0,90802.0,0.00220238]
[1745337887146,0.1482,90825.0,90810.0,0.58824233]
[1745337887147,0.004,90813.0,90810.0,0.58824233]
[1745337887668,0.11375594,90825.0,90810.0,0.58824233]
[1745337888213,0.11375594,90825.0,90801.0,0.341]
[1745337888417,0.004,90807.0,90801.0,0.341]
[1745337888634,0.08895659,90805.0,90801.0,0.001]
[1745337888849,0.11375594,90804.0,90801.0,0.001]
[1745337889043,0.22025703,90803.0,90801.0,0.001]
[1745337889274,0.3340154,90802.0,90801.0,0.001]
[1745337889480,0.34855625,90802.0,90801.0,0.001]
[1745337889773,0.35670725,90802.0,90801.0,0.001]
[1745337890855,0.36470725,90802.0,90801.0,0.001]
[1745337891310,0.35770725,90802.0,90801.0,0.001]
[1745337891681,0.36570725,90802.0,90801.0,0.001]
[1745337892038,0.35770725,90802.0,90801.0,0.001]
[1745337892186,0.36670725,90802.0,90801.0,0.001]
[1745337892385,0.35770725,90802.0,90801.0,0.001]
[1745337892585,0.36770725,90802.0,90801.0,0.001]
[1745337892793,0.40612163,90802.0,90801.0,0.001]
[1745337892995,0.39612163,90802.0,90801.0,0.001]
[1745337893197,0.32028857,90790.0,90773.0,0.0008484]
[1745337893419,0.44858536,90790.0,90789.0,0.18281649]
[1745337894922,0.45658536,90790.0,90789.0,0.18281649]
[1745337895382,0.86058536,90790.0,90789.0,0.18281649]
[1745337895605,0.86858536,90790.0,90789.0,0.18281649]
[1745337895821,0.45658536,90790.0,90789.0,0.18281649]
[1745337896033,0.476701,90790.0,90789.0,0.18281649]
[1745337896374,0.466701,90790.0,90789.0,0.18281649]
[1745337896827,0.478701,90790.0,90789.0,0.18281649]
[1745337897030,0.60882536,90790.0,90789.0,0.18281649]
[1745337897236,0.72257741,90790.0,90789.0,0.18281649]
[1745337897445,0.73157741,90790.0,90789.0,0.18281649]
[1745337897640,0.72257741,90790.0,90789.0,0.18281649]
[1745337897849,0.61882536,90790.0,90789.0,0.18281649]
[1745337901328,0.39853679,90790.0,90789.0,0.18281649]
[1745337901530,0.38399594,90790.0,90789.0,0.18281649]
[1745337901788,0.60428451,90790.0,90789.0,0.18281649]
[1745337901971,0.39853679,90790.0,90789.0,0.18281649]
[1745337903763,0.61882536,90790.0,90789.0,0.18281649]
[1745337903979,0.73257741,90790.0,90789.0,0.18281649]
[1745337904221,0.61882536,90790.0,90789.0,0.18281649]
[1745337904449,0.71882536,90790.0,90789.0,0.18281649]
[1745337904901,1.21978195,90790.0,90789.0,0.18281649]
[1745337905127,0.87058536,90790.0,90789.0,0.18281649]
[1745337905341,0.78587594,90790.0,90789.0,0.18281649]
[1745337905542,0.37387594,90790.0,90789.0,0.18281649]
[1745337905758,0.36187594,90790.0,90789.0,0.18281649]
[1745337905991,0.43404451,90790.0,90789.0,0.18281649]
[1745337906200,0.63369846,90790.0,90789.0,0.18281649]
[1745337906430,0.60870536,90790.0,90789.0,0.18281649]
[1745337906635,0.60770536,90790.0,90789.0,0.18281649]
[1745337906782,0.59670536,90790.0,90789.0,0.18281649]
[1745337907182,0.60670536,90790.0,90789.0,0.18281649]
[1745337908007,0.39841679,90790.0,90789.0,0.18281649]
[1745337909920,0.40853092,90790.0,90789.0,0.18281649]
[1745337910865,0.1,90782.0,90770.0,0.59044548]
[1745337911063,0.1,90782.0,90770.0,0.58824233]
[1745337911288,0.1,90782.0,90771.0,0.00220306]
[1745337911644,0.1,90782.0,90769.0,0.11063321]
[1745337911958,0.107,90782.0,90769.0,0.11063321]
[1745337912162,0.11375594,90781.0,90769.0,0.11063321]
[1745337913761,0.11875594,90781.0,90769.0,0.11063321]
[1745337914384,0.005,90781.0,90770.0,0.59044561]
[1745337914603,0.005,90781.0,90776.0,0.34]
[1745337914852,0.005,90781.0,90780.0,0.34]
[1745337915041,0.012,90781.0,90772.0,0.3863]
[1745337915248,0.012,90781.0,90780.0,0.00687729]
[1745337915459,0.005,90781.0,90780.0,0.00687729]
[1745337915857,0.009,90781.0,90780.0,0.00687729]
[1745337916272,0.007,90781.0,90780.0,0.00687729]
[1745337916683,0.008,90781.0,90780.0,0.00687729]
[1745337916894,0.014,90781.0,90780.0,0.00687729]
[1745337917101,0.114,90781.0,90780.0,0.00687729]
[1745337917718,0.114,90781.0,90772.0,0.0463]
[1745337917926,0.014,90781.0,90773.0,0.00220318]
[1745337918133,0.014,90781.0,90773.0,0.00908078]
[1745337918347,0.014,90781.0,90775.0,0.34]
[1745337918558,0.014,90781.0,90777.0,0.22031913]
[1745337918799,0.006,90781.0,90777.0,0.22031913]
[1745337918915,0.006,90781.0,90778.0,0.0068776]
[1745337919337,0.004,90781.0,90778.0,0.0068776]
[1745337919545,0.004,90781.0,90779.0,0.0068776]
[1745337919768,0.007,90781.0,90779.0,0.0068776]
[1745337919986,0.012,90781.0,90779.0,0.0068776]
[1745337920390,0.007,90781.0,90780.0,0.0068776]
[1745337920570,0.013,90781.0,90780.0,0.0068776]
[1745337920765,0.007,90781.0,90780.0,0.0068776]
[1745337921234,0.1,90789.0,90780.0,0.0068776]
[1745337921670,0.001,90802.0,90780.0,0.56719044]
[1745337921671,0.007,90781.0,90780.0,0.56719044]
[1745337921874,0.007,90781.0,90780.0,0.56031284]
[1745337922075,0.101,90802.0,90785.0,0.22029958]
[1745337922187,0.1,90798.0,90783.0,0.01101527]
[1745337922412,0.001,90802.0,90791.0,0.0110143]
[1745337922642,0.001,90802.0,90801.0,0.34]
[1745337923459,0.001,90802.0,90801.0,0.34687638]
[1745337924130,0.002,90802.0,90801.0,0.34687638]
[1745337924323,0.011,90802.0,90801.0,0.34687638]
[1745337924730,0.002,90802.0,90801.0,0.34687638]
[1745337925125,0.004,90802.0,90801.0,0.34687638]
[1745337925961,0.004,90802.0,90801.0,0.46063232]
[1745337926303,0.08895659,90837.0,90819.0,0.0468]
[1745337926507,0.0890944,90837.0,90819.0,0.0478]
[1745337926685,0.08895659,90827.0,90823.0,0.34]
[1745337927119,0.08895659,90827.0,90824.0,0.00687638]
[1745337927546,0.08895659,90827.0,90825.0,0.00687638]
[1745337927954,0.08895659,90827.0,90826.0,0.00687638]
[1745337928269,0.09795659,90827.0,90826.0,0.00687638]
[1745337928933,0.0960944,90837.0,90826.0,0.00687638]
[1745337929159,0.008,90827.0,90826.0,0.00687638]
[1745337929366,0.008,90827.0,90826.0,0.01986273]
[1745337929571,0.008,90827.0,90826.0,0.41086448]
[1745337929785,0.007,90827.0,90826.0,0.77077737]
[1745337929986,0.00013781,90837.0,90836.0,0.56017702]
[1745337930221,0.00013781,90837.0,90836.0,0.92916804]
[1745337930803,0.00713781,90837.0,90836.0,0.92916804]
[1745337931015,0.00713781,90837.0,90836.0,0.34687638]
[1745337931382,0.00013781,90837.0,90836.0,0.35519941]
[1745337931552,0.00213781,90837.0,90836.0,0.01619941]
[1745337932605,0.00413781,90837.0,90836.0,0.01719941]
[1745337932811,0.00413781,90837.0,90836.0,0.13195535]
[1745337933598,0.00413781,90837.0,90836.0,0.47195535]
[1745337935852,0.00413781,90837.0,90836.0,0.35819941]
[1745337936058,0.00413781,90837.0,90836.0,0.01819941]
[1745337936666,0.00413781,90837.0,90836.0,0.01132303]
[1745337938489,0.00413781,90837.0,90836.0,0.69038184]
[1745337938851,0.00413781,90837.0,90836.0,0.68818053]
[1745337939047,0.00413781,90837.0,90836.0,0.36111971]
[1745337939255,0.00413781,90837.0,90836.0,0.58129673]
[1745337940217,0.00413781,90837.0,90836.0,0.36111971]
[1745337940660,0.00413781,90837.0,90836.0,0.02111971]
[1745337941875,0.00413781,90837.0,90836.0,0.02332133]
[1745337942088,0.00413781,90837.0,90836.0,0.58349835]
[1745337942250,0.00413781,90837.0,90836.0,0.69405267]
[1745337942449,0.1,90863.0,90836.0,0.47287565]
[1745337942740,0.0004237,90868.0,90864.0,0.22010917]
[1745337942949,0.0004237,90868.0,90867.0,0.2201019]
[1745337943356,0.00056161,90868.0,90867.0,0.01253598]
[1745337943526,0.00056161,90868.0,90867.0,0.23263788]
[1745337943733,0.00056161,90868.0,90867.0,0.00687214]
[1745337944303,0.00456161,90868.0,90867.0,0.00687214]
[1745337944523,0.00456161,90868.0,90854.0,0.34]
[1745337944927,0.00456161,90868.0,90855.0,0.34687108]
[1745337945364,0.00056161,90868.0,90863.0,0.22010923]
[1745337945690,0.00956161,90868.0,90867.0,0.001]
[1745337945863,0.00456161,90868.0,90857.0,0.34]
[1745337946060,0.00456161,90868.0,90867.0,0.22697298]
[1745337946265,0.00656161,90868.0,90867.0,0.22697298]
[1745337946488,0.01356161,90868.0,90867.0,0.22917383]
[1745337946645,0.00756161,90868.0,90867.0,0.23332037]
[1745337946848,0.01756161,90868.0,90867.0,0.57211964]
[1745337947074,0.01056161,90868.0,90867.0,0.57211964]
[1745337947296,0.01856161,90868.0,90867.0,0.57311964]
[1745337948545,0.01856161,90868.0,90867.0,0.74630096]
[1745337948750,0.00856161,90868.0,90867.0,0.74530096]
[1745337948929,0.01656161,90868.0,90867.0,0.74630096]
[1745337949304,0.0004238,90874.0,90873.0,0.56008737]
[1745337949504,0.0004238,90874.0,90873.0,0.67384331]